fUSD/lending_fUSD_20240119
["ID","MTS","AMOUNT","RATE_DAILY","PERIOD"]
[312188418,1705683076293,-605.87,0.00022739,2]
[312188419,1705683076304,-500.0,0.00022739,2]
[312188420,1705683076318,-868.31,0.00022739,2]
[312188421,1705683076328,-1784.08,0.00022739,2]
[312188422,1705683076338,-500.0,0.00022739,2]
[312188423,1705683076349,-1463.66,0.00022739,2]
[312188424,1705683076360,-4707.09,0.00022739,2]
[312188425,1705683076370,-2694.32,0.00022739,2]
[312188426,1705683076381,-500.0,0.00022739,2]
[312188427,1705683076391,-6030.03,0.00022739,2]
[312188428,1705683076402,-500.0,0.00022739,2]
[312188429,1705683076412,-500.0,0.00022739,2]
[312188430,1705683076423,-500.0,0.00022739,2]
[312188431,1705683076434,-500.0,0.00022739,2]
[312188432,1705683076444,-500.0,0.00022739,2]
[312188433,1705683076455,-508.37475352,0.00022739,2]
[312188434,1705683076465,-18704.77,0.00022739,2]
[312188435,1705683076477,-2454.23,0.00022739,2]
[312188436,1705683076487,-500.0,0.00022739,2]
[312188437,1705683076498,-500.0,0.00022739,2]
[312188438,1705683076510,-500.0,0.00022739,2]
[312188439,1705683076521,-768.06,0.00022739,2]
[312188440,1705683076534,-500.0,0.00022739,2]
[312188441,1705683076545,-4131.9,0.00022739,2]
[312188442,1705683076556,-500.0,0.00022739,2]
[312188443,1705683076569,-8316.81,0.00022739,2]
[312188444,1705683076580,-500.0,0.00022739,2]
[312188445,1705683076591,-500.0,0.00022739,2]
[312188446,1705683076610,-500.0,0.00022739,2]
[312188447,1705683076622,-500.0,0.00022739,2]
[312188448,1705683076645,-1268.12,0.00022739,2]
[312188449,1705683076656,-500.0,0.00022739,2]
[312188450,1705683076682,-3687.65,0.00022739,2]
[312188451,1705683076695,-500.0,0.00022739,2]
[312188452,1705683076714,-1214.61,0.00022739,2]
[312188453,1705683076727,-500.0,0.00022739,2]
[312188454,1705683076742,-1000.0,0.00022739,2]
[312188455,1705683076754,-500.0,0.00022739,2]
[312188456,1705683076775,-500.0,0.00022739,2]
[312188457,1705683076789,-617.11,0.00022739,2]
[312188458,1705683076800,-863.99,0.00022739,2]
[312188459,1705683076833,-979.22,0.00022739,2]
[312188460,1705683076848,-500.0,0.00022739,2]
[312188461,1705683076880,-500.0,0.00022739,2]
[312188462,1705683076894,-500.0,0.00022739,2]
[312188463,1705683076911,-2687.47,0.00022739,2]
[312188464,1705683076929,-500.0,0.00022739,2]
[312188465,1705683076948,-569.72,0.00022739,2]
[312188466,1705683076960,-710.2,0.00022739,2]
[312188467,1705683076975,-500.0,0.00022739,2]
[312188468,1705683076987,-765.99,0.00022739,2]
[312188469,1705683076999,-664.73,0.00022739,2]
[312188470,1705683077010,-590.56,0.00022739,2]
[312188471,1705683077034,-11160.91,0.00022739,2]
[312188472,1705683077049,-511.4249444,0.00022739,2]
[312188473,1705683077062,-500.0,0.00022739,2]
[312188474,1705683077072,-500.0,0.00022739,2]
[312188475,1705683077083,-2529.14,0.00022739,2]
[312188476,1705683077095,-500.0,0.00022739,2]
[312188477,1705683077112,-500.0,0.00022739,2]
[312188478,1705683077435,-500.0,0.00022739,2]
[312188479,1705683077445,-500.0,0.00022739,2]
[312188480,1705683077456,-500.0,0.00022739,2]
[312188481,1705683077467,-1962.44,0.00022739,2]
[312188482,1705683077477,-500.0,0.00022739,2]
[312188483,1705683077488,-5059.39,0.00022739,2]
[312188484,1705683077499,-500.0,0.00022739,2]
[312188485,1705683077509,-500.0,0.00022739,2]
[312188486,1705683077520,-500.0,0.00022739,2]
[312188487,1705683077533,-161.66,0.00022739,2]
[312188488,1705683077545,-500.0,0.00022739,2]
[312188489,1705683077556,-500.0,0.00022739,2]
[312188490,1705683077566,-1399.75,0.00022739,2]
[312188491,1705683077577,-910.55,0.00022739,2]
[312188492,1705683077598,-500.0,0.00022739,2]
[312188493,1705683077608,-300.0,0.00022739,2]
[312188494,1705683077634,-346.64554089,0.00022739,2]
[312188495,1705683077646,-500.0,0.00022739,2]
[312188496,1705683077664,-5160.63,0.00022739,2]
[312188497,1705683077675,-1994.62,0.00022739,2]
[312188498,1705683077686,-500.0,0.00022739,2]
[312188499,1705683077696,-500.0,0.00022739,2]
[312188500,1705683077707,-500.0,0.00022739,2]
[312188501,1705683077718,-500.0,0.00022739,2]
[312188502,1705683077729,-500.0,0.00022739,2]
[312188503,1705683077740,-500.0,0.00022739,2]
[312188504,1705683077751,-500.0,0.00022739,2]
[312188505,1705683077762,-2677.63,0.00022739,2]
[312188506,1705683077772,-1219.36,0.00022739,2]
[312188507,1705683077788,-2762.28,0.00022739,2]
[312188508,1705683077798,-500.0,0.00022739,2]
[312188509,1705683077808,-543.99,0.00022739,2]
[312188510,1705683077819,-1517.14,0.00022739,2]
[312188511,1705683077830,-7639.24,0.00022739,2]
[312188512,1705683077840,-500.0,0.00022739,2]
[312188513,1705683077849,-500.0,0.00022739,2]
[312188514,1705683077859,-562.9,0.00022739,2]
[312188515,1705683077869,-500.0,0.00022739,2]
[312188516,1705683077879,-556.44,0.00022739,2]
[312188517,1705683077889,-500.0,0.00022739,2]
[312188518,1705683077899,-500.0,0.00022739,2]
[312188519,1705683077909,-1181.95,0.00022739,2]
[312188520,1705683077918,-525.33,0.00022739,2]
[312188521,1705683077928,-500.0,0.00022739,2]
[312188522,1705683077938,-2103.6,0.00022739,2]
[312188523,1705683077948,-500.0,0.00022739,2]
[312188524,1705683077957,-504.94,0.00022739,2]
[312188525,1705683077970,-500.0,0.00022739,2]
[312188526,1705683077980,-500.0,0.00022739,2]
[312188527,1705683077990,-500.0,0.00022739,2]
[312188528,1705683077999,-500.0,0.00022739,2]
[312188529,1705683078009,-487.88921306,0.00022739,2]
[312188530,1705683078018,-500.0,0.00022739,2]
[312188531,1705683078028,-831.41,0.00022739,2]
[312188532,1705683078048,-500.0,0.00022739,2]
[312188533,1705683078058,-500.0,0.00022739,2]
[312188534,1705683078068,-500.0,0.00022739,2]
[312188535,1705683078077,-746.32,0.00022739,2]
[312188536,1705683078088,-500.0,0.00022739,2]
[312188537,1705683078097,-1630.13,0.00022739,2]
[312188538,1705683078107,-500.0,0.00022739,2]
[312188539,1705683078120,-500.0,0.00022739,2]
[312188540,1705683078129,-551.29,0.00022739,2]
[312188541,1705683078139,-522.90506671,0.00022739,2]
[312188542,1705683078149,-500.0,0.00022739,2]
[312188543,1705683078158,-590.21,0.00022739,2]
[312188544,1705683078168,-953.53,0.00022739,2]
[312188545,1705683078181,-500.0,0.00022739,2]
[312188546,1705683078195,-500.0,0.00022739,2]
[312188547,1705683078205,-500.0,0.00022739,2]
[312188548,1705683078215,-1292.52,0.00022739,2]
[312188549,1705683078224,-500.0,0.00022739,2]
[312188550,1705683078234,-593.96,0.00022739,2]
[312188551,1705683078243,-1742.38,0.00022739,2]
[312188552,1705683078255,-500.0,0.00022739,2]
[312188553,1705683078264,-500.0,0.00022739,2]
[312188554,1705683078274,-500.0,0.00022739,2]
[312188555,1705683078285,-500.0,0.00022739,2]
[312188556,1705683078294,-500.0,0.00022739,2]
[312188557,1705683078304,-1110.63,0.00022739,2]
[312188558,1705683078313,-500.0,0.00022739,2]
[312188559,1705683078323,-722.53,0.00022739,2]
[312188560,1705683078334,-500.0,0.00022739,2]
[312188561,1705683078343,-500.0,0.00022739,2]
[312188562,1705683078353,-2642.43,0.00022739,2]
[312188563,1705683078363,-500.0,0.00022739,2]
[312188564,1705683078373,-500.0,0.00022739,2]
[312188565,1705683078383,-500.0,0.00022739,2]
[312188566,1705683078392,-500.0,0.00022739,2]
[312188567,1705683078401,-859.73,0.00022739,2]
[312188568,1705683078411,-959.38,0.00022739,2]
[312188569,1705683078421,-500.0,0.00022739,2]
[312188570,1705683078431,-5159.53,0.00022739,2]
[312188571,1705683078441,-2527.57,0.00022739,2]
[312188572,1705683078453,-658.67,0.00022739,2]
[312188573,1705683078463,-500.0,0.00022739,2]
[312188574,1705683078472,-634.46,0.00022739,2]
[312188575,1705683078482,-500.0,0.00022739,2]
[312188576,1705683078492,-2418.37,0.00022739,2]
[312188577,1705683078501,-500.0,0.00022739,2]
[312188578,1705683078511,-500.0,0.00022739,2]
[312188579,1705683078522,-645.81,0.00022739,2]
[312188580,1705683078534,-500.0,0.00022739,2]
[312188581,1705683078544,-1354.15,0.00022739,2]
[312188582,1705683078554,-500.0,0.00022739,2]
[312188583,1705683078563,-500.0,0.00022739,2]
[312188584,1705683078573,-732.88,0.00022739,2]
[312188585,1705683078582,-500.0,0.00022739,2]
[312188586,1705683078592,-500.0,0.00022739,2]
[312188587,1705683078601,-8044.27,0.00022739,2]
[312188588,1705683078611,-500.0,0.00022739,2]
[312188589,1705683078622,-1071.92,0.00022739,2]
[312188590,1705683078631,-500.0,0.00022739,2]
[312188591,1705683078641,-1131.8,0.00022739,2]
[312188592,1705683078652,-500.0,0.00022739,2]
[312188593,1705683078663,-615.35,0.00022739,2]
[312188594,1705683078674,-500.0,0.00022739,2]
[312188595,1705683078689,-1266.02,0.00022739,2]
[312188596,1705683078698,-500.0,0.00022739,2]
[312188597,1705683078708,-1899.77,0.00022739,2]
[312188598,1705683078717,-500.0,0.00022739,2]
[312188599,1705683078728,-521.03916371,0.00022739,2]
[312188600,1705683078737,-2241.89,0.00022739,2]
[312188601,1705683078747,-500.0,0.00022739,2]
[312188602,1705683078756,-500.0,0.00022739,2]
[312188603,1705683078766,-1121.36,0.00022739,2]
[312188604,1705683078775,-500.0,0.00022739,2]
[312188605,1705683078787,-500.0,0.00022739,2]
[312188606,1705683078797,-500.0,0.00022739,2]
[312188607,1705683078807,-500.0,0.00022739,2]
[312188608,1705683078816,-828.85,0.00022739,2]
[312188609,1705683078825,-500.0,0.00022739,2]
[312188610,1705683078835,-2489.76,0.00022739,2]
[312188611,1705683078844,-500.0,0.00022739,2]
[312188612,1705683078853,-500.0,0.00022739,2]
[312188613,1705683078863,-500.0,0.00022739,2]
[312188614,1705683078872,-862.17,0.00022739,2]
[312188615,1705683078882,-500.0,0.00022739,2]
[312188616,1705683078891,-500.0,0.00022739,2]
[312188617,1705683078901,-4391.27,0.00022739,2]
[312188618,1705683078911,-500.0,0.00022739,2]
[312188619,1705683078920,-913.21,0.00022739,2]
[312188620,1705683078930,-868.63,0.00022739,2]
[312188621,1705683078940,-500.0,0.00022739,2]
[312188622,1705683078949,-500.0,0.00022739,2]
[312188623,1705683078959,-3237.58,0.00022739,2]
[312188624,1705683078969,-506.9850551,0.00022739,2]
[312188625,1705683078978,-546.18,0.00022739,2]
[312188626,1705683078988,-352.2,0.00022739,2]
[312188627,1705683078998,-1145.26,0.00022739,2]
[312188628,1705683079008,-500.0,0.00022739,2]
[312188629,1705683079017,-500.0,0.00022739,2]
[312188630,1705683079026,-500.0,0.00022739,2]
[312188631,1705683079038,-1146.85,0.00022739,2]
[312188632,1705683079047,-500.0,0.00022739,2]
[312188633,1705683079056,-500.0,0.00022739,2]
[312188634,1705683079066,-500.0,0.00022739,2]
[312188635,1705683079076,-500.0,0.00022739,2]
[312188636,1705683079085,-500.0,0.00022739,2]
[312188637,1705683079095,-12838.31,0.00022739,2]
[312188638,1705683079104,-1028.89,0.00022739,2]
[312188639,1705683079115,-1419.61,0.00022739,2]
[312188640,1705683079125,-2503.12,0.00022739,2]
[312188641,1705683079134,-500.0,0.00022739,2]
[312188642,1705683079144,-500.0,0.00022739,2]
[312188643,1705683079153,-500.0,0.00022739,2]
[312188644,1705683079163,-500.0,0.00022739,2]
[312188645,1705683079172,-1462.96,0.00022739,2]
[312188646,1705683079182,-747.07,0.00022739,2]
[312188647,1705683079191,-1261.54,0.00022739,2]
[312188648,1705683079200,-500.0,0.00022739,2]
[312188649,1705683079210,-500.0,0.00022739,2]
[312188650,1705683079219,-687.33,0.00022739,2]
[312188651,1705683079228,-500.0,0.00022739,2]
[312188652,1705683079237,-500.0,0.00022739,2]
[312188653,1705683079247,-649.65,0.00022739,2]
[312188654,1705683079257,-500.0,0.00022739,2]
[312188655,1705683079266,-500.0,0.00022739,2]
[312188656,1705683079275,-660.63,0.00022739,2]
[312188657,1705683079287,-1226.99,0.00022739,2]
[312188658,1705683079297,-1453.36,0.00022739,2]
[312188659,1705683079307,-685.52,0.00022739,2]
[312188660,1705683079317,-500.0,0.00022739,2]
[312188661,1705683079327,-574.9,0.00022739,2]
[312188662,1705683079337,-500.0,0.00022739,2]
[312188663,1705683079346,-1528.63,0.00022739,2]
[312188664,1705683079355,-500.0,0.00022739,2]
[312188665,1705683079365,-758.36,0.00022739,2]
[312188666,1705683079375,-964.96,0.00022739,2]
[312188667,1705683079385,-584.77,0.00022739,2]
[312188668,1705683079394,-500.0,0.00022739,2]
[312188669,1705683079404,-500.0,0.00022739,2]
[312188670,1705683079413,-500.0,0.00022739,2]
[312188671,1705683079424,-500.0,0.00022739,2]
[312188672,1705683079433,-500.0,0.00022739,2]
[312188673,1705683079444,-500.0,0.00022739,2]
[312188674,1705683079454,-500.0,0.00022739,2]
[312188675,1705683079464,-1985.31,0.00022739,2]
[312188676,1705683079474,-2102.59,0.00022739,2]
[312188677,1705683079484,-500.0,0.00022739,5]
[312188678,1705683079494,-500.0,0.00022739,2]
[312188679,1705683079503,-500.0,0.00022739,2]
[312188680,1705683079514,-865.61,0.00022739,2]
[312188681,1705683079524,-500.0,0.00022739,2]
[312188682,1705683079536,-500.0,0.00022739,2]
[312188683,1705683079546,-705.47,0.00022739,2]
[312188684,1705683079557,-667.44,0.00022739,2]
[312188685,1705683079568,-391.98,0.00022739,2]
[312188686,1705683079578,-500.0,0.00022739,2]
[312188687,1705683079588,-315.83546503,0.00022739,2]
[312188688,1705683079597,-500.0,0.00022739,2]
[312188689,1705683079608,-500.0,0.00022739,2]
[312188690,1705683079618,-5537.13017265,0.00022758,2]
[312188691,1705683079628,-5385.32312478,0.000228,2]
[312188692,1705683079638,-351.7,0.00022844,2]
[312188693,1705683079648,-1229.52976238,0.00022853,2]
[312188694,1705683079658,-1388.89,0.00022899,2]
[312188695,1705683079670,-1388.89,0.00022899,2]
[312188696,1705683079681,-1388.89,0.00022899,2]
[312188697,1705683079692,-1388.89,0.00022899,2]
[312188698,1705683079701,-1388.89,0.00022899,2]
[312188699,1705683079712,-1388.89,0.00022899,2]
[312188700,1705683079722,-1389.01,0.00022899,2]
[312188701,1705683079733,-558.61,0.00022899,2]
[312188702,1705683079742,-558.61,0.00022899,2]
[312188703,1705683079752,-558.61,0.00022899,2]
[312188704,1705683079763,-558.61,0.00022899,2]
[312188705,1705683079773,-558.61,0.00022899,2]
[312188706,1705683079788,-558.61,0.00022899,2]
[312188707,1705683079800,-558.61,0.00022899,2]
[312188708,1705683079810,-167.04017006,0.00022899,2]
[312188709,1705683079820,-150.0,0.00022899,2]
[312188710,1705683079830,-167.04017006,0.00022899,2]
[312188711,1705683079843,-150.0,0.00022899,2]
[312188712,1705683079853,-167.04017006,0.00022899,2]
[312188713,1705683079863,-150.0,0.00022899,2]
[312188714,1705683079964,-151.0,0.000229,7]
[312188715,1705683079975,-151.0,0.000229,7]
[312188716,1705683079985,-151.0,0.000229,7]
[312188717,1705683079996,-1612144.75288217,0.000229,3]
[312188718,1705683080550,-5496.62668027,0.000229,3]
[312188719,1705683080572,-1417.9165,0.000229,3]
[312188720,1705683080585,-1211.0,0.000229,3]
[312188721,1705683080607,-500.0,0.00022191,2]
[312188722,1705683080618,-373974.30843237,0.000229,3]
[312188723,1705683080641,-11497.70101539,0.000229,3]
[312188724,1705683080653,-1008.49563619,0.000229,3]
[312188725,1705683080668,-6510.48385346,0.000229,3]
[312188726,1705683080680,-1838.93806204,0.000229,3]
[312188727,1705683081478,-265.43330548,0.00021917,2]
[312188728,1705683081492,-234.56669452,0.00021917,2]
[312188729,1705683081504,-253.94787557,0.00021917,2]
[312188730,1705683081541,-246.05212443,0.00021917,2]
[312188731,1705683081551,-459.43703793,0.00021917,2]
[312188732,1705683081565,-40.56296207,0.00021917,2]
[312188733,1705683081575,-500.0,0.00021917,2]
[312188734,1705683081585,-500.0,0.00021917,2]
[312188735,1705683081595,-500.0,0.00021917,2]
[312188736,1705683081605,-500.0,0.00021917,2]
[312188737,1705683081615,-500.0,0.00021917,2]
[312188738,1705683081629,-500.0,0.0002219,2]
[312188739,1705683081640,-500.0,0.00022191,2]
[312188740,1705683081651,-500.0,0.00022191,2]
[312188741,1705683081662,-500.0,0.00022191,2]
[312188742,1705683081675,-500.0,0.00022191,2]
[312188743,1705683081686,-500.0,0.00022191,2]
[312188744,1705683081696,-500.0,0.00022191,2]
[312188745,1705683081708,-500.0,0.00022465,2]
[312188746,1705683081719,-500.0,0.00022465,2]
[312188747,1705683081728,-500.0,0.00022465,2]
[312188748,1705683081738,-500.0,0.00022465,2]
[312188749,1705683081748,-88.06183792,0.00022465,2]
[312188750,1705683081847,-354.2653889,0.00022465,2]
[312188751,1705683082116,-57.67277318,0.00022465,2]
[312188752,1705683082126,-500.0,0.00022465,2]
[312188753,1705683082137,-500.0,0.00022465,2]
[312188754,1705683082147,-500.0,0.00022739,2]
[312188755,1705683082157,-500.0,0.00022739,2]
[312188756,1705683082167,-500.0,0.00022739,2]
[312188757,1705683082176,-500.0,0.00022739,2]
[312188758,1705683082186,-17192.32722682,0.000229,3]
[312188759,1705683082198,-4110.71738,0.000229,3]
[312188760,1705683082430,-155.24550736,0.00019073,2]
[312188761,1705683082440,-1940.6797987,0.00021917,3]
[312188762,1705683082450,-1990.73620128,0.00021917,3]
[312188763,1705683082460,-281.18431056,0.00021917,2]
[312188764,1705683082477,-218.81568944,0.00021917,2]
[312188765,1705683082487,-500.0,0.00022191,2]
[312188766,1705683082496,-500.0,0.00022465,2]
[312188767,1705683082506,-5377.98439551,0.000229,3]
[312188768,1705683082518,-278.99626787,0.000229,3]
[312188769,1705683082530,-515225.6652764,0.000229,3]
[312188770,1705683082543,-810.0,0.000229,3]
[312188771,1705683082555,-810.16,0.000229,3]
[312188772,1705683082605,-423.55964104,0.000229,3]
[312188773,1705683082936,-500.0,0.00021917,2]
[312188774,1705683082947,-500.0,0.00021917,2]
[312188775,1705683082957,-500.0,0.00022191,2]
[312188776,1705683082967,-616.98,0.00022465,2]
[312188777,1705683082977,-500.0,0.00022739,2]
[312188778,1705683082988,-343227.22840566,0.000229,3]
[312188779,1705683083019,-342.949,0.000229,3]
[312188780,1705683083047,-175.2,0.00022191,2]
[312188781,1705683083058,-642820.49432718,0.000229,3]
[312188782,1705683083071,-18137.76808597,0.000229,3]
[312188783,1705683083081,-170.583787,0.000229,7]
[312188784,1705683083091,-170.583787,0.000229,7]
[312188785,1705683083101,-151.0,0.000229,7]
[312188786,1705683083111,-151.0,0.000229,7]
[312188787,1705683083122,-252.902898,0.000229,7]
[312188788,1705683083133,-272.007698,0.000229,7]
[312188789,1705683083143,-151.0,0.000229,7]
[312188790,1705683083153,-151.0,0.000229,7]
[312188791,1705683083163,-151.0,0.000229,7]
[312188792,1705683083172,-151.0,0.000229,7]
[312188793,1705683083183,-151.0,0.000229,7]
[312188794,1705683083192,-151.0,0.000229,7]
[312188795,1705683083202,-10.15374403,0.000229,7]
[312188796,1705683083228,-140.84625597,0.000229,7]
[312188797,1705683083238,-151.0,0.000229,7]
[312188798,1705683083249,-151.0,0.000229,7]
[312188799,1705683083260,-574.47279532,0.000229,7]
[312188800,1705683083273,-230.81607168,0.000229,7]
[312188801,1705683083288,-805.288867,0.000229,7]
[312188802,1705683083300,-151.0,0.000229,7]
[312188803,1705683083312,-1311.043602,0.000229,7]
[312188804,1705683083322,-1311.043602,0.000229,7]
[312188805,1705683083332,-152.055814,0.000229,7]
[312188806,1705683083342,-152.055814,0.000229,7]
[312188807,1705683083353,-176.300185,0.000229,7]
[312188808,1705683083364,-9237.526097,0.000229,7]
[312188809,1705683083375,-246.922817,0.000229,7]
[312188810,1705683083387,-246.922817,0.000229,7]
[312188811,1705683083397,-5202.549118,0.000229,7]
[312188812,1705683083408,-5202.549118,0.000229,7]
[312188813,1705683083418,-932.459178,0.000229,7]
[312188814,1705683083429,-932.459178,0.000229,7]
[312188815,1705683083440,-196.231334,0.000229,7]
[312188816,1705683083451,-196.231334,0.000229,7]
[312188817,1705683083461,-151.51572879,0.000229,2]
[312188818,1705683083472,-151.51572845,0.000229,2]
[312188819,1705683083482,-151.51572845,0.000229,2]
[312188820,1705683083493,-151.51572845,0.000229,2]
[312188821,1705683083504,-151.51572845,0.000229,2]
[312188822,1705683083515,-151.51572845,0.000229,2]
[312188823,1705683083525,-153.189807,0.000229,7]
[312188824,1705683083539,-153.189807,0.000229,7]
[312188825,1705683083549,-151.0,0.000229,7]
[312188826,1705683083560,-151.0,0.000229,7]
[312188827,1705683083571,-222.129827,0.000229,7]
[312188828,1705683083582,-222.129827,0.000229,7]
[312188829,1705683083592,-5165.831101,0.000229,7]
[312188830,1705683083604,-5165.831101,0.000229,7]
[312188831,1705683083615,-323.177933,0.000229,7]
[312188832,1705683083628,-323.177933,0.000229,7]
[312188833,1705683083639,-150.0,0.0002291,2]
[312188834,1705683083651,-971.12568826,0.00022912,2]
[312188835,1705683083662,-355.70015446,0.00022913,2]
[312188836,1705683083676,-1500.0,0.00022934,2]
[312188837,1705683083687,-4000.0,0.0002294,2]
[312188838,1705683083697,-151.51572845,0.00022959,2]
[312188839,1705683083708,-159.8,0.00022981,2]
[312188840,1705683083718,-150.0,0.00022999,2]
[312188841,1705683083729,-4896.576206,0.00023,2]
[312188842,1705683083739,-50000.0,0.00023,2]
[312188843,1705683083750,-2439.07,0.00023012,2]
[312188844,1705683083761,-4843.52,0.00023012,2]
[312188845,1705683083772,-500.0,0.00023012,2]
[312188846,1705683083783,-1433.16,0.00023012,2]
[312188847,1705683083797,-1681.58,0.00023012,2]
[312188848,1705683083807,-2258.27,0.00023012,2]
[312188849,1705683083817,-854.1,0.00023012,2]
[312188850,1705683083827,-1945.08,0.00023012,2]
[312188851,1705683083838,-898.06,0.00023012,2]
[312188852,1705683083848,-1120.44,0.00023012,2]
[312188853,1705683083858,-698.76,0.00023012,2]
[312188854,1705683083868,-623.01,0.00023012,2]
[312188855,1705683083879,-1701.36,0.00023012,2]
[312188856,1705683083889,-915.97,0.00023012,2]
[312188857,1705683083899,-151.0,0.00023013,7]
[312188858,1705683083909,-151.0,0.00023013,7]
[312188859,1705683083919,-151.0,0.00023013,7]
[312188860,1705683083929,-151.0,0.00023013,7]
[312188861,1705683083939,-156.524727,0.00023013,7]
[312188862,1705683083949,-151.0,0.00023013,7]
[312188863,1705683083958,-151.0,0.00023013,7]
[312188864,1705683083968,-151.0,0.00023013,7]
[312188865,1705683083978,-805.288867,0.00023013,7]
[312188866,1705683083988,-805.288867,0.00023013,7]
[312188867,1705683083998,-151.0,0.00023013,7]
[312188868,1705683084008,-1311.043602,0.00023013,7]
[312188869,1705683084018,-1311.043602,0.00023013,7]
[312188870,1705683084029,-152.055814,0.00023013,7]
[312188871,1705683084041,-152.055814,0.00023013,7]
[312188872,1705683084051,-9237.526097,0.00023013,7]
[312188873,1705683084061,-246.922817,0.00023013,7]
[312188874,1705683084071,-246.922817,0.00023013,7]
[312188875,1705683084082,-5202.549118,0.00023013,7]
[312188876,1705683084092,-5202.549118,0.00023013,7]
[312188877,1705683084102,-932.459178,0.00023013,7]
[312188878,1705683084112,-932.459178,0.00023013,7]
[312188879,1705683084358,-196.231334,0.00023013,7]
[312188880,1705683084376,-196.231334,0.00023013,7]
[312188881,1705683084392,-153.189807,0.00023013,7]
[312188882,1705683084402,-153.189807,0.00023013,7]
[312188883,1705683084412,-151.0,0.00023013,7]
[312188884,1705683084421,-151.0,0.00023013,7]
[312188885,1705683084431,-222.129827,0.00023013,7]
[312188886,1705683084440,-222.129827,0.00023013,7]
[312188887,1705683084450,-5165.831101,0.00023013,7]
[312188888,1705683084460,-5165.831101,0.00023013,7]
[312188889,1705683084469,-323.177933,0.00023013,7]
[312188890,1705683084480,-323.177933,0.00023013,7]
[312188891,1705683084489,-500.0,0.00023013,2]
[312188892,1705683084499,-500.0,0.00023013,2]
[312188893,1705683084509,-500.0,0.00023013,2]
[312188894,1705683084518,-500.0,0.00023013,2]
[312188895,1705683084529,-500.0,0.00023013,2]
[312188896,1705683084542,-500.0,0.00023013,2]
[312188897,1705683084551,-500.0,0.00023013,2]
[312188898,1705683084560,-500.0,0.00023013,2]
[312188899,1705683084569,-500.0,0.00023013,2]
[312188900,1705683084578,-500.0,0.00023013,2]
[312188901,1705683084588,-500.0,0.00023013,2]
[312188902,1705683084598,-500.0,0.00023013,2]
[312188903,1705683084607,-567.84,0.00023013,2]
[312188904,1705683084618,-500.0,0.00023013,2]
[312188905,1705683084627,-500.0,0.00023013,2]
[312188906,1705683084637,-500.0,0.00023013,2]
[312188907,1705683084647,-500.0,0.00023013,2]
[312188908,1705683084660,-507.16,0.00023013,2]
[312188909,1705683084670,-500.0,0.00023013,2]
[312188910,1705683084679,-649.46,0.00023013,2]
[312188911,1705683084689,-500.0,0.00023013,2]
[312188912,1705683084698,-536.41,0.00023013,2]
[312188913,1705683084708,-500.0,0.00023013,2]
[312188914,1705683084719,-500.0,0.00023013,2]
[312188915,1705683084728,-500.0,0.00023013,2]
[312188916,1705683084739,-500.0,0.00023013,2]
[312188917,1705683084748,-500.0,0.00023013,2]